lending/lending_fUSD_20251021
["ID","MTS","AMOUNT","RATE_DAILY","PERIOD"]
[391933327,1761005432266,-168.0,0.00014982,2]
[391933328,1761005432276,-250.0,0.00014982,2]
[391933329,1761005432286,-32.0,0.00014982,2]
[391933330,1761005432297,-183.99731066,0.00014982,2]
[391933331,1761005432307,-151.0,0.0001499,2]
[391933332,1761005432316,-151.0,0.0001499,2]
[391933333,1761005432325,-151.0,0.0001499,2]
[391933334,1761005432335,-151.0,0.0001499,2]
[391933335,1761005432344,-168.0,0.00014992,2]
[391933336,1761005432354,-215.99731066,0.00014999,2]
[391933337,1761005432363,-500.0,0.00014999,2]
[391933338,1761005432372,-135.02300034,0.00014999,2]
[391933339,1761005432383,-189.82849267,0.00014999,2]
[391933340,1761005432393,-167.4751109,0.00014999,2]
[391933341,1761005432404,-332.5248891,0.00014999,2]
[391933342,1761005432414,-102.05234752,0.00014999,2]
[391933343,1761005432425,-397.94765248,0.00014999,2]
[391933344,1761005432434,-602.89831103,0.00014999,2]
[391933345,1761005432443,-500.0,0.00014999,2]
[391933350,1761005432455,-160.0,0.00015,2]
[391933351,1761005432639,-168.0,0.00015089,2]
[391933352,1761005432649,-151.0,0.00015147,2]
[391933353,1761005432659,-151.0,0.00015152,2]
[391933354,1761005432669,-151.0,0.00015154,2]
[391933356,1761005432678,-168.0,0.00015161,2]
[391933358,1761005432688,-168.0,0.00015295,2]
[391933360,1761005432697,-168.0,0.00015298,2]
[391933362,1761005432707,-168.0,0.00015419,2]
[391933364,1761005432719,-168.0,0.00015432,2]
[391933365,1761005432728,-168.0,0.00015479,2]
[391933366,1761005432737,-168.0,0.00015743,2]
[391933367,1761005432746,-168.0,0.00015852,2]
[391933368,1761005432756,-168.0,0.00015915,2]
[391933369,1761005432765,-200.0,0.00015998,2]
[391933370,1761005432775,-436.95403649,0.00016116,2]
[391933371,1761005432808,-1028.92855401,0.00016116,2]
[391933372,1761005432820,-436.60011272,0.00016116,2]
[391933373,1761005432831,-339.66691684,0.00016116,2]
[391933376,1761005438368,-159.75037994,0.00016116,2]
[391933377,1761005438378,-168.0,0.00016244,2]
[391933378,1761005438390,-168.0,0.00016308,2]
[391933379,1761005438399,-300.0,0.00016481,2]
[391933380,1761005438408,-3827.59573458,0.00016481,2]
[391933381,1761005438421,-285.56853006,0.00016481,2]
[391933382,1761005438431,-250.0,0.00016481,2]
[391933383,1761005438440,-475.93135235,0.00017712,2]
[391933384,1761005438450,-2150.21762802,0.00017916,2]
[391933385,1761005438462,-1238.9711267,0.00017916,2]
[391933386,1761005438473,-761.36053784,0.00017916,2]
[391933387,1761005438485,-805.0,0.00017916,2]
[391933388,1761005438515,-749.74194093,0.00017916,2]
[391933389,1761005438527,-741.88243715,0.00017916,2]
[391933390,1761005438537,-153.0,0.00022143,2]
[391933391,1761005438546,-153.0,0.00022143,2]
[391933392,1761005438556,-153.0,0.00022143,2]
[391933394,1761005438565,-153.0,0.00022143,2]
[391933395,1761005438574,-153.0,0.00022143,2]
[391933397,1761005438584,-153.0,0.00022143,2]
[391933399,1761005438593,-2259.42379538,0.00022498,2]
[391933400,1761005438603,-170.97114428,0.00023267,2]
[391933402,1761005438613,-369.10526177,0.00023267,2]
[391933536,1761005440390,-131.84690123,0.00023267,2]
[391933538,1761005440399,-500.0,0.00023267,2]
[391933540,1761005440409,-500.0,0.00023267,2]
[391933542,1761005440419,-636.47038415,0.00023267,2]
[391933544,1761005440428,-633.68880023,0.00023647,2]
[391933546,1761005440438,-166.66,0.00023844,30]
[391933548,1761005440448,-1390.2,0.00023859,2]
[391933550,1761005440457,-630.62,0.0002406,2]
[391933552,1761005440466,-166.66,0.00024346,30]
[391933554,1761005440475,-194.8,0.00024658,2]
[391933556,1761005440485,-5000.0,0.00024822,2]
[391933558,1761005440494,-166.66,0.00024848,30]
[391933560,1761005440503,-161.83329339,0.00025116,2]
[391933562,1761005440512,-610.0,0.00025246,2]
[391933564,1761005440521,-150.0,0.00025246,2]
[391933566,1761005440531,-166.66,0.0002535,30]
[391933568,1761005440541,-500.0,0.00025508,2]
[391933570,1761005440550,-500.0,0.00025508,2]
[391933572,1761005440559,-500.0,0.00025508,2]
[391933574,1761005440569,-500.0,0.00025508,2]
[391933576,1761005440578,-330.1387212,0.00025508,2]
[391933578,1761005440588,-1000.0,0.00025509,2]
[391933580,1761005440598,-166.66,0.00025852,30]
[391933582,1761005440607,-166.66,0.00026354,30]
[391933584,1761005440617,-1600.85,0.00027397,2]
[391933586,1761005440626,-1600.85,0.00027397,2]
[391933588,1761005440635,-1600.85,0.00027397,2]
[391933590,1761005440644,-1600.85,0.00027397,2]
[391933592,1761005440653,-1600.85,0.00027397,2]
[391933594,1761005440663,-1600.85,0.00027397,2]
[391933596,1761005440672,-1600.85,0.00027397,2]
[391933598,1761005440682,-1600.85,0.00027397,2]
[391933600,1761005440691,-1600.85,0.00027397,2]
[391933602,1761005440701,-1600.85,0.00027397,2]
[391933604,1761005440711,-1600.85,0.00027397,2]
[391933606,1761005440720,-1600.85,0.00027397,2]
[391933608,1761005440729,-1600.85,0.00027397,2]
[391933610,1761005440739,-1600.85,0.00027397,2]
[391933612,1761005440748,-1600.85,0.00027397,2]
[391933614,1761005440758,-1600.85,0.00027397,2]
[391933616,1761005440767,-1600.85,0.00027397,2]
[391933618,1761005440776,-1600.85,0.00027397,2]
[391933620,1761005440785,-1600.85,0.00027397,2]
[391933622,1761005440794,-1600.85,0.00027397,2]
[391933624,1761005440804,-1600.85,0.00027397,2]
[391933626,1761005440813,-1600.85,0.00027397,2]
[391933628,1761005440822,-1600.85,0.00027397,2]
[391933630,1761005440831,-1600.85378582,0.00027397,2]
[391933632,1761005440841,-300.0,0.00027397,2]
[391933634,1761005440850,-300.0,0.00027397,2]
[391933636,1761005440860,-300.0,0.00027397,2]
[391933638,1761005440869,-300.0,0.00027397,2]
[391933640,1761005440878,-300.0,0.00027397,2]
[391933642,1761005440888,-382.12083981,0.00027397,2]
[391933644,1761005440897,-500.43492189,0.000274,5]
[391933646,1761005440906,-500.0,0.000274,5]
[391933648,1761005440916,-500.0,0.000274,3]
[391933650,1761005440924,-194.8,0.00027595,2]
[391933652,1761005440934,-297.81637227,0.00027948,5]
[391933654,1761005440943,-283.786,0.00028151,18]
[391933656,1761005440951,-1000.0,0.00028698,2]
[391933658,1761005440961,-150.0,0.00029238,7]
[391933660,1761005440970,-500.0,0.00029428,7]
[391933662,1761005440979,-500.0,0.00029489,7]
[391933664,1761005440988,-500.0,0.00029592,7]
[391933666,1761005440997,-500.0,0.00029674,7]
[391933668,1761005441006,-600.0,0.00029744,7]
[391933670,1761005441015,-500.0,0.00030135,7]
[391933672,1761005441025,-373.37702272,0.00030135,2]
[391933674,1761005441035,-600.0,0.00030162,7]
[391933676,1761005441045,-600.0,0.00030255,7]
[391933678,1761005441055,-600.0,0.00030382,7]
[391933680,1761005441064,-194.8,0.00030533,2]
[391933682,1761005441073,-500.0,0.00030715,7]
[391933684,1761005441083,-600.0,0.00030722,7]
[391933686,1761005441093,-150.0,0.00030871,7]
[391933688,1761005441103,-500.0,0.00030984,7]
[391933690,1761005441113,-159.0,0.00031,120]
[391933692,1761005441122,-152.0,0.00031025,3]
[391933694,1761005441132,-600.0,0.00031034,7]
[391933696,1761005441142,-500.0,0.0003121,7]
[391933698,1761005441151,-600.0,0.00031242,7]
[391933700,1761005441160,-500.0,0.00031587,7]
[391933702,1761005441170,-600.0,0.00031622,7]
[391933704,1761005441180,-500.0,0.00031673,7]
[391933706,1761005441189,-1000.0,0.00031777,2]
[391933708,1761005441199,-600.0,0.0003178,7]
[391933710,1761005441210,-1000.0,0.00031887,2]
[391933728,1761005441372,-500.0,0.00031914,7]
[391933731,1761005441387,-177.95556687,0.00032,120]
[391933733,1761005441396,-187.37474908,0.00032,120]
[391933735,1761005441405,-169.37661003,0.00032,120]
[391933737,1761005441420,-526.86466005,0.00032,120]
[391933739,1761005441429,-429.67845747,0.00032,120]
[391933741,1761005441438,-4224.76563777,0.00032,120]
[391933744,1761005441454,-2340.00000005,0.00032,120]
[391933747,1761005441472,-2717.72036434,0.00032,120]
[391933910,1761005443481,-806.22641607,0.00032,120]
[391933911,1761005443490,-176.83312215,0.00032,120]
[391933912,1761005443500,-160.0,0.00032,120]
[391933914,1761005443510,-197.64581887,0.00032,120]
[391933916,1761005443519,-600.0,0.00032302,7]
[391933917,1761005443529,-600.0,0.00032454,7]
[391933919,1761005443538,-500.0,0.00032597,7]
[391933920,1761005443547,-150.0,0.00032695,120]
[391933921,1761005443556,-1870.0,0.00032783,2]
[391933922,1761005443565,-500.0,0.00032829,7]
[391933923,1761005443574,-1000.0,0.00032829,7]
[391933924,1761005443583,-500.0,0.00032829,7]
[391933925,1761005443592,-1310.28803661,0.00032829,2]
[391933926,1761005443602,-1000.0,0.00032876,30]
[391933927,1761005443611,-1000.0,0.00032901,2]
[391933928,1761005443620,-672.72054675,0.00032913,2]
[391933929,1761005443630,-177.95556687,0.00033,120]
[391933930,1761005443639,-187.37474908,0.00033,120]
[391933931,1761005443648,-169.37661003,0.00033,120]
[391933932,1761005443656,-526.86466005,0.00033,120]
[391933933,1761005443666,-429.67845747,0.00033,120]
[391933934,1761005443675,-10088.71241823,0.00033,120]
[391933935,1761005443685,-176.83312215,0.00033,120]
[391933936,1761005443694,-1801.55646741,0.00033,2]
[391933937,1761005443703,-34591.11,0.00033,10]
[391933938,1761005443713,-1000.0,0.00033013,30]
[391933939,1761005443722,-200.0,0.00033044,2]
[391933940,1761005443732,-672.72054671,0.00033056,2]
[391933941,1761005443741,-1425.0,0.00033113,2]
[391933942,1761005443750,-1000.0,0.0003315,30]
[391933943,1761005443760,-396.03595005,0.00033173,2]
[391933944,1761005443769,-500.0,0.00033178,7]
[391933945,1761005443779,-672.72054671,0.00033199,2]
[391933946,1761005443788,-195.71279344,0.00033214,2]
[391933947,1761005443797,-75504.2211573,0.00033239,2]
[391933948,1761005443806,-11483.3214548,0.00033239,2]
[391933949,1761005443815,-500.0,0.00033239,7]
[391933952,1761005443824,-245.47813877,0.00033239,7]
[391933954,1761005443834,-200.0,0.00033255,2]
[391933956,1761005443843,-200.0,0.00033255,2]
[391933957,1761005443853,-200.0,0.00033255,2]
[391933958,1761005443862,-200.0,0.00033255,2]
[391933959,1761005443871,-200.0,0.00033256,2]
[391933960,1761005443880,-200.0,0.00033256,2]
[391933961,1761005443889,-200.0,0.00033256,2]
[391933962,1761005443898,-200.0,0.00033257,2]
[391933963,1761005443908,-200.0,0.00033257,2]
[391933964,1761005443917,-200.0,0.00033257,2]
[391933965,1761005443927,-500.0,0.00033269,120]
[391933966,1761005443936,-200.0,0.0003327,10]
[391933967,1761005443946,-31655.85074667,0.0003327,2]
[391933968,1761005443955,-1000.0,0.00033287,30]
[391933969,1761005443964,-158.05,0.000333,7]
[391933970,1761005443973,-173.65,0.00033317,2]
[391933971,1761005443983,-396.03595001,0.00033324,2]
[391933972,1761005443992,-672.72054671,0.00033343,2]
[391933973,1761005444000,-500.0,0.00033391,7]
[391933974,1761005444009,-165.38076882,0.00033397,30]
[391933975,1761005444018,-165.38076884,0.00033397,30]
[391933976,1761005444027,-165.38076884,0.00033397,30]
[391933977,1761005444037,-1000.0,0.00033424,30]
[391933978,1761005444046,-194.8,0.00033471,2]
[391933979,1761005444055,-396.03595001,0.00033475,2]
[391933980,1761005444063,-672.72054671,0.00033486,2]
[391933981,1761005444072,-803.0,0.000335,2]
[391933982,1761005444082,-228.66690578,0.00033538,2]
[391933983,1761005444091,-230.21404226,0.00033538,2]
[391933984,1761005444101,-974.71589,0.00033538,2]
[391933985,1761005444111,-1000.0,0.00033561,30]
[391933986,1761005444120,-150.0,0.00033589,5]
[391933987,1761005444130,-150.0,0.00033589,5]
[391933988,1761005444140,-150.0,0.00033589,5]
[391933989,1761005444149,-150.0,0.00033589,5]
[391933990,1761005444158,-150.0,0.00033589,5]
[391933991,1761005444167,-150.0,0.00033589,5]
[391933992,1761005444176,-200.78287206,0.00033589,5]
[391933993,1761005444186,-150.0,0.00033589,5]
[391933994,1761005444194,-150.0,0.00033589,5]
[391933995,1761005444204,-150.0,0.00033589,5]
[391933996,1761005444217,-150.0,0.00033589,5]
[391933997,1761005444227,-150.0,0.00033589,5]
[391933998,1761005444236,-150.0,0.00033589,5]
[391933999,1761005444245,-500.0,0.00033589,5]
[391934000,1761005444256,-150.0,0.00033589,5]
[391934001,1761005444265,-150.0,0.00033589,5]
[391934002,1761005444273,-150.0,0.00033589,5]
[391934003,1761005444283,-150.0,0.00033589,5]
[391934004,1761005444292,-150.0,0.00033589,2]
[391934005,1761005444301,-150.0,0.00033589,5]
[391934006,1761005444310,-150.0,0.00033589,5]
[391934007,1761005444319,-150.0,0.00033589,2]
[391934008,1761005444328,-150.0,0.00033589,5]
[391934009,1761005444337,-167.0,0.00033589,5]
[391934010,1761005444346,-150.0,0.00033589,5]
[391934011,1761005444356,-52834.89160715,0.000336,10]
[391934012,1761005444365,-200.0,0.000336,2]
[391934013,1761005444374,-600.0,0.00033613,7]
[391934014,1761005444384,-396.03595001,0.00033626,2]
[391934015,1761005444393,-14768.4110903,0.00033641,3]
[391934016,1761005444402,-150.0,0.00033644,5]
[391934017,1761005444412,-150.0,0.00033644,5]
[391934018,1761005444422,-150.0,0.00033644,5]
[391934019,1761005444432,-500.0,0.00033644,5]
[391934020,1761005444441,-150.0,0.00033644,5]
[391934021,1761005444451,-150.0,0.00033644,5]
[391934022,1761005444460,-150.0,0.00033644,5]
[391934023,1761005444469,-150.0,0.00033644,5]
[391934024,1761005444479,-150.0,0.00033644,5]
[391934025,1761005444488,-1000.0,0.00033651,7]
[391934026,1761005444497,-1000.0,0.00033698,30]
[391934027,1761005444507,-150.0,0.00033699,5]
[391934028,1761005444516,-150.0,0.00033699,5]
[391934029,1761005444525,-200.0,0.00033699,5]
[391934030,1761005444535,-500.0,0.00033699,5]
[391934031,1761005444543,-200.0,0.00033699,5]
[391934032,1761005444553,-150.0,0.00033699,5]
[391934033,1761005444563,-150.0,0.00033699,5]
[391934034,1761005444572,-500.0,0.00033729,120]
[391934035,1761005444581,-200.0,0.00033753,5]
[391934036,1761005444591,-500.0,0.00033753,5]
[391934037,1761005444601,-150.0,0.00033753,5]
[391934038,1761005444610,-150.0,0.00033753,5]
[391934039,1761005444619,-165.38076884,0.00033753,30]
[391934040,1761005444629,-160.0,0.0003376,30]
[391934041,1761005444638,-396.03595001,0.00033778,2]
[391934042,1761005444648,-600.0,0.00033798,7]
[391934043,1761005444657,-500.0,0.00033808,5]
[391934044,1761005444666,-184.38831943,0.00033808,5]
[391934045,1761005444675,-743.58,0.00033817,2]
[391934046,1761005444684,-1000.0,0.00033835,30]
[391934047,1761005444693,-500.0,0.00033844,7]
[391934048,1761005444702,-500.0,0.00033863,5]
[391934049,1761005444711,-14768.4110903,0.0003389,3]
[391934050,1761005444720,-928.30002202,0.0003389,6]
[391934051,1761005444729,-10035.12660317,0.000339,14]
[391934052,1761005444738,-177.95556687,0.000339,120]
[391934053,1761005444747,-187.37474908,0.000339,120]
[391934054,1761005444758,-169.37661003,0.000339,120]
[391934055,1761005444768,-526.86466005,0.000339,120]
[391934056,1761005444778,-429.67845747,0.000339,120]
[391934057,1761005444787,-10088.71241823,0.000339,120]
[391934058,1761005444796,-176.83312215,0.000339,120]
[391934059,1761005444805,-500.0,0.00033918,5]
[391934060,1761005444814,-396.03595001,0.00033929,2]
[391934061,1761005444824,-200.0,0.00033936,2]
[391934062,1761005444834,-500.0,0.00033939,60]
[391934063,1761005444845,-171.0208484,0.00033957,30]
[391934064,1761005444855,-31337.89783185,0.00033958,2]
[391934065,1761005444865,-1000.0,0.00033972,30]
[391934066,1761005444875,-500.0,0.00033973,5]
[391934067,1761005444886,-500.98237208,0.00033973,5]
[391934068,1761005444896,-217.14332983,0.00033973,5]
[391934069,1761005444905,-500.0,0.00033973,5]
[391934070,1761005444915,-504.40191595,0.00033973,5]
[391934071,1761005444924,-14768.4110903,0.00033979,3]
[391934072,1761005444933,-29536.8221805,0.00033989,3]
[391934073,1761005444943,-14768.4110903,0.0003399,3]
[391934074,1761005444953,-46937.56003951,0.00033999,2]
[391934075,1761005444962,-1000.0,0.00034,2]
[391934076,1761005444971,-1000.0,0.00034,2]
[391934077,1761005444981,-1000.0,0.00034,2]
[391934078,1761005444990,-1000.0,0.00034,2]
[391934079,1761005444999,-1000.0,0.00034,2]
[391934080,1761005445009,-1000.0,0.00034,2]
[391934081,1761005445018,-1000.0,0.00034,2]
[391934082,1761005445027,-20000.0,0.00034,2]
[391934083,1761005445037,-1000.0,0.00034,2]
[391934084,1761005445047,-1000.0,0.00034,2]
[391934085,1761005445056,-1000.0,0.00034,2]
[391934086,1761005445065,-500.0,0.00034027,5]
[391934087,1761005445074,-530.41988366,0.00034065,2]
[391934088,1761005445083,-1000.0,0.0003407,2]
[391934089,1761005445094,-1000.0,0.00034075,2]
[391934090,1761005445103,-396.03595001,0.0003408,2]
[391934091,1761005445113,-500.0,0.00034082,5]
[391934092,1761005445123,-1425.0,0.00034083,2]
[391934093,1761005445132,-214.21251319,0.00034109,30]
[391934094,1761005445141,-1000.0,0.00034127,2]
[391934095,1761005445151,-1425.0,0.00034127,2]
[391934096,1761005445160,-436.21802579,0.00034128,2]
[391934097,1761005445170,-150.0,0.00034128,2]
[391934098,1761005445179,-500.0,0.00034137,5]
[391934099,1761005445189,-1425.0,0.00034154,2]
[391934100,1761005445198,-205.59624012,0.00034173,120]
[391934101,1761005445210,-205.59624016,0.00034173,120]
[391934102,1761005445222,-29536.8221805,0.00034182,3]
[391934103,1761005445232,-5000.0,0.00034192,2]
[391934104,1761005445242,-14768.4110903,0.00034192,3]
[391934105,1761005445251,-500.0,0.00034198,7]
[391934106,1761005445262,-1425.0,0.00034199,2]
[391934107,1761005445272,-500.0,0.00034201,120]
[391934108,1761005445282,-55555.0,0.00034202,3]
[391934109,1761005445295,-2783.72764091,0.00034202,30]
[391934110,1761005445304,-2783.72764091,0.00034202,30]
[391934111,1761005445314,-2783.72764091,0.00034202,30]
[391934112,1761005445324,-2783.72764091,0.00034202,30]
[391934113,1761005445333,-2783.72764091,0.00034202,30]
[391934114,1761005445344,-2783.72764091,0.00034202,30]
[391934115,1761005445353,-2783.72764091,0.00034202,30]
[391934116,1761005445363,-2783.72764091,0.00034202,30]
[391934117,1761005445373,-2783.72764091,0.00034202,30]
[391934118,1761005445383,-2783.72764091,0.00034202,30]
[391934119,1761005445393,-2783.72764091,0.00034202,30]
[391934120,1761005445403,-2783.72764091,0.00034202,30]
[391934121,1761005445413,-2783.72764091,0.00034202,30]
[391934122,1761005445422,-2783.72764091,0.00034202,30]
[391934123,1761005445432,-2783.72764091,0.00034202,30]
[391934124,1761005445441,-2783.72764091,0.00034202,30]
[391934125,1761005445450,-2783.72764091,0.00034202,30]
[391934126,1761005445460,-2783.72764091,0.00034202,30]
[391934127,1761005445469,-2783.72764091,0.00034202,30]
[391934128,1761005445478,-2783.72,0.00034202,30]
[391934129,1761005445487,-181.36185538,0.00034202,2]
[391934130,1761005445497,-543.36298525,0.00034202,2]
[391934131,1761005445506,-164.24198384,0.00034202,2]
[391934132,1761005445516,-184.69997057,0.00034202,2]
[391934133,1761005445525,-1000.0,0.00034212,2]
[391934134,1761005445536,-14768.4110903,0.00034221,3]
[391934135,1761005445546,-3217.39083534,0.00034225,3]
[391934136,1761005445555,-396.03595001,0.00034231,2]
[391934137,1761005445565,-151.0,0.00034233,7]
[391934138,1761005445574,-151.0,0.00034233,7]
[391934139,1761005445584,-1000.0,0.00034245,2]
[391934140,1761005445594,-1425.0,0.00034258,2]
[391934141,1761005445604,-14768.4110903,0.00034262,3]
[391934142,1761005445613,-3217.39083534,0.00034262,3]
[391934143,1761005445623,-150.0,0.00034262,2]
[391934144,1761005445632,-14768.4110903,0.00034271,3]
[391934145,1761005445642,-9652.17250602,0.00034271,3]
[391934146,1761005445652,-200.0,0.00034275,2]
[391934147,1761005445662,-1425.0,0.00034277,2]
[391934148,1761005445671,-14768.4110903,0.0003428,3]
[391934149,1761005445683,-3217.39083534,0.0003428,3]
[391934150,1761005445693,-88610.4665416,0.00034282,3]
[391934151,1761005445703,-45043.4716948,0.00034282,3]
[391934152,1761005445713,-3217.39083534,0.0003429,3]
[391934153,1761005445724,-500.0,0.00034291,120]
[391934154,1761005445735,-14768.4110903,0.00034291,3]
[391934155,1761005445745,-44305.2332708,0.00034292,3]
[391934156,1761005445754,-73999.9892128,0.00034292,3]
[391934157,1761005445763,-154.75300197,0.00034292,2]
[391934158,1761005445772,-154.75300197,0.00034292,2]
[391934159,1761005445782,-154.75300197,0.00034292,2]
[391934160,1761005445792,-150.4,0.00034292,2]
[391934161,1761005445802,-150.4,0.00034292,2]
[391934162,1761005445811,-150.4,0.00034292,2]
[391934163,1761005445821,-150.4,0.00034292,2]
[391934164,1761005445830,-150.4,0.00034292,2]
[391934165,1761005445840,-150.4,0.00034292,2]
[391934166,1761005445850,-150.4,0.00034292,2]
[391934167,1761005445860,-609.07738354,0.00034292,3]
[391934168,1761005445869,-300.0,0.00034292,60]
[391934169,1761005445879,-300.0,0.00034292,60]
[391934170,1761005445888,-409.787617,0.00034292,60]
[391934171,1761005445898,-500.0,0.00034299,120]
[391934172,1761005445908,-155.0,0.000343,120]
[391934173,1761005445917,-250.0,0.000343,14]
[391934174,1761005445927,-250.0,0.000343,14]
[391934175,1761005445936,-250.0,0.000343,14]
[391934176,1761005445946,-250.0,0.000343,14]
[391934177,1761005445955,-250.0,0.000343,14]
[391934178,1761005445964,-250.0,0.000343,14]
[391934179,1761005446106,-250.0,0.000343,14]
[391934180,1761005446117,-250.0,0.000343,14]
[391934181,1761005446127,-250.0,0.000343,14]
[391934182,1761005446137,-250.0,0.000343,14]
[391934183,1761005446147,-250.0,0.000343,14]
[391934184,1761005446156,-250.0,0.000343,14]
[391934185,1761005446165,-250.0,0.000343,14]
[391934186,1761005446175,-250.0,0.000343,14]
[391934187,1761005446185,-250.0,0.000343,14]
[391934188,1761005446195,-250.0,0.000343,14]
[391934189,1761005446205,-250.0,0.000343,14]
[391934190,1761005446219,-250.0,0.000343,14]
[391934191,1761005446231,-250.0,0.000343,14]
[391934192,1761005446241,-250.0,0.000343,14]
[391934193,1761005446251,-250.0,0.000343,14]
[391934194,1761005446260,-250.0,0.000343,14]
[391934195,1761005446270,-250.0,0.000343,14]
[391934196,1761005446280,-250.0,0.000343,14]
[391934197,1761005446290,-250.0,0.000343,14]
[391934198,1761005446301,-250.0,0.000343,14]
[391934199,1761005446310,-159.0,0.000343,120]
[391934200,1761005446320,-443.0,0.000343,2]
[391934201,1761005446329,-968.0,0.000343,2]
[391934202,1761005446339,-301.0,0.000343,2]
[391934203,1761005446348,-171.54236,0.000343,30]
[391934204,1761005446358,-171.54236,0.000343,30]
[391934205,1761005446368,-171.54236,0.000343,30]
[391934206,1761005446377,-171.54236,0.000343,30]
[391934207,1761005446387,-2000.0,0.00034301,3]
[391934208,1761005446396,-2000.0,0.00034301,3]
[391934209,1761005446405,-500.0,0.00034301,120]
[391934210,1761005446414,-500.0,0.00034301,120]
[391934211,1761005446423,-500.0,0.00034301,120]
[391934212,1761005446433,-500.0,0.00034301,120]
[391934213,1761005446442,-500.0,0.00034301,120]
[391934214,1761005446452,-500.0,0.00034301,120]
[391934215,1761005446462,-468.15182298,0.00034301,120]
[391934216,1761005446471,-2033.87,0.00034301,120]
[391934217,1761005446480,-1140809.82045877,0.00034302,120]
[391934223,1761005676355,164.22,0.0001274,2]
[391934234,1761006609593,10000.0,0.00030137,120]
[391934235,1761006621816,10000.0,0.00030137,120]
[391934250,1761006631404,-164.22,0.0001341,2]
[391934251,1761006631414,-166.47344729,0.000138,2]
[391934252,1761006631424,-0.29655271,0.000139,2]
[391934253,1761006631510,-575.89463172,0.000139,2]
[391934254,1761006631520,-754.10096636,0.00014025,2]
[391934255,1761006631567,-139.84908712,0.00014025,2]
[391934256,1761006631576,-164.22,0.00014081,2]
[391934257,1761006631587,-202.2336909,0.0001439,2]
[391934258,1761006631597,-300.0,0.0001475,2]
[391934259,1761006631607,-1200.0,0.0001475,2]
[391934260,1761006631617,-300.0,0.00014751,2]
[391934261,1761006631628,-2500.0,0.00014751,2]
[391934262,1761006631639,-446.61206028,0.00014751,2]
[391934263,1761006631649,-276.1748678,0.00014751,2]
[391934264,1761006631660,-300.0,0.00014751,2]
[391934265,1761006631671,-872.38187963,0.00014751,2]
[391934266,1761006631681,-500.0,0.00014751,2]
[391934268,1761006631690,-164.22,0.00014751,2]
[391934270,1761006631700,-150.0,0.00014899,2]
[391934272,1761006631711,-436.82661558,0.000149,2]
[391934273,1761006631721,-3485.19940262,0.000149,2]
[391934274,1761006631734,-164.24198384,0.000149,2]
[391934276,1761006631743,-1448.96796063,0.000149,2]
[391934278,1761006631753,-169.22385144,0.000149,2]
[391934280,1761006631763,-500.0,0.00014973,2]
[391934282,1761006631771,-500.0,0.00014973,2]
[391934284,1761006631780,-521.83469714,0.00014999,2]
[391934285,1761006631789,-258.90430235,0.00014999,2]
[391934286,1761006631799,-133190.22372193,0.00015,2]
[391934295,1761006632290,10000.0,0.00030137,120]
[391934315,1761006637492,-500.0,0.00014973,2]
[391934316,1761006637502,-54962.08784031,0.00015,2]
[391934318,1761006637514,-22430.28005121,0.00015,2]
[391934388,1761006639487,-2432.3073212,0.00015,2]
[391934394,1761006639599,-3245.93501852,0.00015,2]
[391934398,1761006639656,-4449938.5801517,0.00015,2]
[391934399,1761006639666,-992.0662978,0.00015,10]
[391934400,1761006639675,-7883.2483098,0.00015,2]